fUSD/lending_fUSD_20250916
["ID","MTS","AMOUNT","RATE_DAILY","PERIOD"]
[385817333,1758055917682,-400.0,0.00032054,6]
[385817334,1758055917691,-400.0,0.00032054,6]
[385817335,1758055917701,-400.0,0.00032054,6]
[385817336,1758055917711,-965.27,0.00032054,6]
[385817337,1758055917720,-1092.66,0.00032054,6]
[385817338,1758055917730,-400.0,0.00032054,6]
[385817339,1758055917741,-915.59,0.00032054,6]
[385817340,1758055917751,-400.0,0.00032054,6]
[385817341,1758055917760,-693.26,0.00032054,6]
[385817342,1758055917770,-408.08233389,0.00032054,6]
[385817343,1758055917780,-400.0,0.00032054,6]
[385817344,1758055917790,-873.33,0.00032054,6]
[385817345,1758055917799,-400.0,0.00032054,6]
[385817346,1758055917809,-659.67,0.00032054,6]
[385817347,1758055917818,-724.66,0.00032054,6]
[385817348,1758055917827,-400.0,0.00032054,6]
[385817349,1758055917837,-400.0,0.00032054,6]
[385817350,1758055917847,-511.46348149,0.00032054,6]
[385817351,1758055917857,-400.0,0.00032054,6]
[385817352,1758055917867,-463.42,0.00032054,6]
[385817353,1758055917877,-400.0,0.00032054,6]
[385817354,1758055917889,-1187.49,0.00032054,6]
[385817355,1758055917899,-400.0,0.00032054,6]
[385817356,1758055917910,-611.4,0.00032054,6]
[385817357,1758055917921,-400.0,0.00032054,6]
[385817358,1758055917931,-825.95,0.00032054,6]
[385817359,1758055917941,-2051.76,0.00032054,6]
[385817360,1758055917951,-400.0,0.00032054,6]
[385817361,1758055917960,-2551.67,0.00032054,6]
[385817362,1758055917970,-752.32,0.00032054,6]
[385817363,1758055917979,-2057.54,0.00032054,6]
[385817364,1758055917989,-400.0,0.00032054,6]
[385817365,1758055917999,-449.27,0.00032054,6]
[385817366,1758055918009,-400.0,0.00032054,6]
[385817367,1758055918018,-633.85,0.00032054,6]
[385817368,1758055918028,-400.0,0.00032054,6]
[385817369,1758055918038,-400.0,0.00032054,6]
[385817370,1758055918048,-457.48,0.00032054,6]
[385817371,1758055918058,-400.0,0.00032054,6]
[385817372,1758055918068,-1149.2,0.00032054,6]
[385817373,1758055918078,-809.23,0.00032054,6]
[385817374,1758055918088,-400.0,0.00032054,6]
[385817375,1758055918098,-400.0,0.00032054,6]
[385817376,1758055918108,-400.0,0.00032054,6]
[385817377,1758055918117,-400.0,0.00032054,6]
[385817378,1758055918127,-406.64,0.00032054,6]
[385817379,1758055918137,-757.93,0.00032054,6]
[385817380,1758055918147,-678.31,0.00032054,6]
[385817381,1758055918157,-400.0,0.00032054,6]
[385817382,1758055918166,-669.07,0.00032054,6]
[385817383,1758055918176,-400.0,0.00032054,6]
[385817384,1758055918185,-435.49,0.00032054,6]
[385817385,1758055918195,-544.7,0.00032054,6]
[385817386,1758055918206,-400.0,0.00032054,6]
[385817387,1758055918216,-755.72,0.00032054,6]
[385817388,1758055918225,-1264.24,0.00032054,6]
[385817389,1758055918235,-2602.41,0.00032054,6]
[385817390,1758055918245,-400.0,0.00032054,6]
[385817391,1758055918255,-651.62,0.00032054,6]
[385817392,1758055918264,-400.0,0.00032054,6]
[385817393,1758055918274,-400.0,0.00032054,6]
[385817394,1758055918284,-400.0,0.00032054,6]
[385817395,1758055918294,-4091.94,0.00032054,6]
[385817396,1758055918304,-400.0,0.00032054,6]
[385817397,1758055918314,-475.44,0.00032054,6]
[385817398,1758055918325,-400.0,0.00032054,6]
[385817399,1758055918337,-400.0,0.00032054,6]
[385817400,1758055918349,-405.59,0.00032054,6]
[385817401,1758055918359,-400.0,0.00032054,6]
[385817402,1758055918369,-405.86,0.00032054,6]
[385817403,1758055918379,-1940.41,0.00032054,6]
[385817404,1758055918389,-400.0,0.00032054,6]
[385817405,1758055918399,-2380.39,0.00032054,6]
[385817406,1758055918409,-400.0,0.00032054,6]
[385817407,1758055918419,-503.64,0.00032054,6]
[385817408,1758055918430,-623.1,0.00032054,6]
[385817409,1758055918441,-400.0,0.00032054,6]
[385817410,1758055918453,-852.09,0.00032054,6]
[385817411,1758055918464,-794.77,0.00032054,6]
[385817412,1758055918474,-700.18,0.00032054,6]
[385817413,1758055918485,-464.58,0.00032054,6]
[385817414,1758055918496,-400.0,0.00032054,6]
[385817415,1758055918506,-400.0,0.00032054,6]
[385817416,1758055918516,-400.0,0.00032054,6]
[385817417,1758055918525,-742.26,0.00032054,6]
[385817418,1758055918536,-885.24,0.00032054,6]
[385817419,1758055918545,-679.38,0.00032054,6]
[385817420,1758055918555,-400.0,0.00032054,6]
[385817421,1758055918564,-419.78,0.00032054,6]
[385817422,1758055918574,-2714.52,0.00032054,6]
[385817423,1758055918584,-472.34,0.00032054,6]
[385817424,1758055918594,-1211.27,0.00032054,6]
[385817425,1758055918603,-400.0,0.00032054,6]
[385817426,1758055918613,-456.67,0.00032054,6]
[385817427,1758055918623,-400.0,0.00032054,6]
[385817428,1758055918632,-400.0,0.00032054,6]
[385817429,1758055918642,-1686.16,0.00032054,6]
[385817430,1758055918652,-600.0,0.0003209,5]
[385817431,1758055918661,-800.0,0.00032095,7]
[385817432,1758055918671,-500.0,0.0003214,7]
[385817433,1758055918681,-500.0,0.00032164,7]
[385817434,1758055918691,-500.0,0.00032167,7]
[385817435,1758055918701,-1000.0,0.00032182,7]
[385817436,1758055918710,-50000.0,0.0003222,2]
[385817437,1758055918719,-1100.0,0.00032244,7]
[385817438,1758055918729,-800.0,0.00032249,7]
[385817439,1758055918739,-152.0,0.0003227,4]
[385817440,1758055918749,-414774.3789509,0.000323,30]
[385817441,1758055918759,-470.0,0.00032314,2]
[385817442,1758055918769,-500.0,0.00032314,2]
[385817443,1758055918779,-500.0,0.00032315,7]
[385817444,1758055918789,-411.30715426,0.00032328,6]
[385817445,1758055918798,-400.0,0.00032328,6]
[385817446,1758055918807,-400.0,0.00032328,6]
[385817447,1758055918817,-400.0,0.00032328,6]
[385817448,1758055918827,-400.0,0.00032328,6]
[385817449,1758055918836,-400.0,0.00032328,6]
[385817450,1758055918846,-400.0,0.00032328,6]
[385817451,1758055918856,-400.0,0.00032328,6]
[385817452,1758055918865,-400.0,0.00032328,6]
[385817453,1758055918875,-400.0,0.00032328,6]
[385817454,1758055918885,-340.62089663,0.00032328,6]
[385817455,1758055918895,-161.15884484,0.00032328,6]
[385817456,1758055918905,-400.0,0.00032328,6]
[385817457,1758055918916,-400.0,0.00032328,6]
[385817458,1758055918925,-400.0,0.00032328,6]
[385817459,1758055918935,-400.0,0.00032328,6]
[385817460,1758055918945,-400.0,0.00032328,6]
[385817461,1758055918954,-400.0,0.00032328,6]
[385817462,1758055918963,-400.0,0.00032328,6]
[385817463,1758055918973,-400.0,0.00032328,6]
[385817464,1758055918982,-400.0,0.00032328,6]
[385817465,1758055918991,-400.0,0.00032328,6]
[385817466,1758055919001,-400.0,0.00032328,6]
[385817467,1758055919011,-466.26,0.00032328,6]
[385817468,1758055919020,-400.0,0.00032328,6]
[385817469,1758055919030,-400.0,0.00032328,6]
[385817470,1758055919039,-400.0,0.00032328,6]
[385817471,1758055919048,-446.63456564,0.00032328,6]
[385817472,1758055919058,-400.0,0.00032328,6]
[385817473,1758055919067,-400.0,0.00032328,6]
[385817474,1758055919077,-400.0,0.00032328,6]
[385817475,1758055919087,-427.10108362,0.00032328,6]
[385817476,1758055919097,-400.0,0.00032328,6]
[385817477,1758055919106,-400.0,0.00032328,6]
[385817478,1758055919116,-400.0,0.00032328,6]
[385817479,1758055919125,-265.08047505,0.00032328,6]
[385817480,1758055919134,-164.7893666,0.00032328,6]
[385817481,1758055919144,-466.99,0.00032328,6]
[385817482,1758055919153,-400.0,0.00032328,6]
[385817483,1758055919163,-400.0,0.00032328,6]
[385817484,1758055919173,-400.0,0.00032328,6]
[385817485,1758055919182,-588.47,0.00032328,6]
[385817486,1758055919192,-400.0,0.00032328,6]
[385817487,1758055919202,-400.0,0.00032328,6]
[385817488,1758055919211,-400.0,0.00032328,6]
[385817489,1758055919220,-193.8100282,0.00032328,6]
[385817490,1758055919231,-400.0,0.00032328,6]
[385817491,1758055919242,-400.0,0.00032328,6]
[385817492,1758055919254,-400.0,0.00032328,6]
[385817493,1758055919266,-462.26289193,0.00032328,6]
[385817494,1758055919277,-400.0,0.00032328,6]
[385817495,1758055919288,-400.0,0.00032328,6]
[385817496,1758055919297,-400.0,0.00032328,6]
[385817497,1758055919307,-400.0,0.00032328,6]
[385817498,1758055919318,-310.60680921,0.00032328,6]
[385817499,1758055919328,-400.0,0.00032328,6]
[385817500,1758055919338,-400.0,0.00032328,6]
[385817501,1758055919350,-448.17,0.00032328,6]
[385817502,1758055919359,-400.0,0.00032328,6]
[385817503,1758055919368,-439.12,0.00032328,6]
[385817504,1758055919378,-901.58,0.00032328,6]
[385817505,1758055919387,-469.91535282,0.00032328,6]
[385817506,1758055919397,-568.53,0.00032328,6]
[385817507,1758055919407,-400.0,0.00032328,6]
[385817508,1758055919418,-400.0,0.00032328,6]
[385817509,1758055919429,-583.89,0.00032328,6]
[385817510,1758055919441,-389.88627609,0.00032328,6]
[385817511,1758055919453,-174.9580925,0.00032328,6]
[385817512,1758055919463,-382.93150096,0.00032328,6]
[385817513,1758055919474,-400.0,0.00032328,6]
[385817514,1758055919483,-614.16,0.00032328,6]
[385817515,1758055919493,-400.0,0.00032328,6]
[385817516,1758055919502,-400.0,0.00032328,6]
[385817517,1758055919512,-677.09,0.00032328,6]
[385817518,1758055919521,-443.20449922,0.00032328,6]
[385817519,1758055919531,-442.39,0.00032328,6]
[385817520,1758055919541,-437.71,0.00032328,6]
[385817521,1758055919551,-771.61,0.00032328,6]
[385817522,1758055919561,-400.0,0.00032328,6]
[385817523,1758055919570,-933.64,0.00032328,6]
[385817524,1758055919579,-400.0,0.00032328,6]
[385817525,1758055919588,-555.07,0.00032328,6]
[385817526,1758055919598,-400.0,0.00032328,6]
[385817527,1758055919607,-400.0,0.00032328,6]
[385817528,1758055919617,-400.0,0.00032328,6]
[385817529,1758055919627,-400.0,0.00032328,6]
[385817530,1758055919637,-400.0,0.00032328,6]
[385817531,1758055919646,-438.36,0.00032328,6]
[385817532,1758055919656,-584.99,0.00032328,6]
[385817533,1758055919667,-400.0,0.00032328,6]
[385817534,1758055919678,-433.4,0.00032328,6]
[385817535,1758055919688,-400.0,0.00032328,6]
[385817536,1758055919699,-400.0,0.00032328,6]
[385817537,1758055919709,-400.0,0.00032328,6]
[385817538,1758055919720,-400.0,0.00032328,6]
[385817539,1758055919729,-400.0,0.00032328,6]
[385817540,1758055919739,-400.22,0.00032328,6]
[385817541,1758055919748,-400.0,0.00032328,6]
[385817542,1758055919757,-400.0,0.00032328,6]
[385817543,1758055919768,-400.0,0.00032328,6]
[385817544,1758055919778,-815.51,0.00032328,6]
[385817545,1758055919788,-400.0,0.00032328,6]
[385817546,1758055919799,-400.0,0.00032328,6]
[385817547,1758055919810,-400.0,0.00032328,6]
[385817548,1758055919821,-400.0,0.00032328,6]
[385817549,1758055919903,-667.42,0.00032328,6]
[385817550,1758055919914,-512.12,0.00032328,6]
[385817551,1758055919925,-454.53,0.00032328,6]
[385817552,1758055919935,-400.0,0.00032328,6]
[385817553,1758055919946,-400.0,0.00032328,6]
[385817554,1758055919957,-461.69,0.00032328,6]
[385817555,1758055919967,-400.0,0.00032328,6]
[385817556,1758055919977,-977.81,0.00032328,6]
[385817557,1758055919986,-487.61,0.00032328,6]
[385817558,1758055919995,-493.83,0.00032328,6]
[385817559,1758055920005,-400.0,0.00032328,6]
[385817560,1758055920014,-400.0,0.00032328,6]
[385817561,1758055920023,-439.87,0.00032328,6]
[385817562,1758055920033,-400.0,0.00032328,6]
[385817563,1758055920043,-572.71,0.00032328,6]
[385817564,1758055920053,-504.8,0.00032328,6]
[385817565,1758055920062,-601.77,0.00032328,6]
[385817566,1758055920072,-400.0,0.00032328,6]
[385817567,1758055920081,-400.0,0.00032328,6]
[385817568,1758055920090,-400.0,0.00032328,6]
[385817569,1758055920099,-400.0,0.00032328,6]
[385817570,1758055920109,-412.65,0.00032328,6]
[385817571,1758055920118,-400.0,0.00032328,6]
[385817572,1758055920127,-496.77,0.00032328,6]
[385817573,1758055920137,-400.0,0.00032328,6]
[385817574,1758055920146,-201.97579829,0.00032328,6]
[385817575,1758055920155,-400.0,0.00032328,6]
[385817576,1758055920164,-400.0,0.00032328,6]
[385817577,1758055920174,-1174.65,0.00032328,6]
[385817578,1758055920183,-400.0,0.00032328,6]
[385817579,1758055920193,-400.0,0.00032328,6]
[385817580,1758055920203,-482.53,0.00032328,6]
[385817581,1758055920213,-512.06,0.00032328,6]
[385817582,1758055920222,-400.0,0.00032328,6]
[385817583,1758055920232,-400.0,0.00032328,6]
[385817584,1758055920242,-552.22,0.00032328,6]
[385817585,1758055920251,-400.0,0.00032328,6]
[385817586,1758055920261,-400.0,0.00032328,6]
[385817587,1758055920270,-404.94,0.00032328,6]
[385817588,1758055920279,-400.0,0.00032328,6]
[385817589,1758055920289,-829.35,0.00032328,5]
[385817590,1758055920299,-400.0,0.00032328,6]
[385817591,1758055920309,-400.0,0.00032328,6]
[385817592,1758055920319,-447.21,0.00032328,6]
[385817593,1758055920330,-400.0,0.00032328,6]
[385817594,1758055920340,-1534.55,0.00032328,6]
[385817595,1758055920355,-582.44,0.00032328,6]
[385817596,1758055920365,-439.97,0.00032328,6]
[385817597,1758055920374,-520.07,0.00032328,6]
[385817598,1758055920383,-436.33,0.00032328,6]
[385817599,1758055920394,-476.19,0.00032328,6]
[385817600,1758055920404,-400.0,0.00032328,6]
[385817601,1758055920413,-2652.66,0.00032328,6]
[385817602,1758055920422,-400.0,0.00032328,6]
[385817603,1758055920434,-851.33,0.00032328,6]
[385817604,1758055920443,-400.0,0.00032328,6]
[385817605,1758055920454,-400.0,0.00032328,6]
[385817606,1758055920465,-400.0,0.00032328,6]
[385817607,1758055920477,-400.0,0.00032328,6]
[385817608,1758055920489,-712.67,0.00032328,6]
[385817609,1758055920499,-606.89,0.00032328,6]
[385817610,1758055920511,-441.66,0.00032328,6]
[385817611,1758055920521,-400.0,0.00032328,6]
[385817612,1758055920531,-400.0,0.00032328,6]
[385817613,1758055920541,-400.0,0.00032328,6]
[385817614,1758055920550,-589.15,0.00032328,6]
[385817615,1758055920559,-400.0,0.00032328,6]
[385817616,1758055920568,-491.06,0.00032328,6]
[385817617,1758055920577,-643.54,0.00032328,6]
[385817618,1758055920586,-531.4,0.00032328,6]
[385817619,1758055920596,-716.44,0.00032328,6]
[385817620,1758055920605,-441.09,0.00032328,6]
[385817621,1758055920615,-498.56,0.00032328,6]
[385817622,1758055920624,-400.0,0.00032328,6]
[385817623,1758055920634,-692.32,0.00032328,6]
[385817624,1758055920643,-400.0,0.00032328,6]
[385817625,1758055920653,-3193.35,0.00032328,6]
[385817626,1758055920662,-400.0,0.00032328,6]
[385817627,1758055920671,-400.0,0.00032328,6]
[385817628,1758055920681,-559.39,0.00032328,6]
[385817629,1758055920690,-994.07,0.00032328,6]
[385817630,1758055920699,-430.31,0.00032328,6]
[385817631,1758055920709,-400.0,0.00032328,6]
[385817632,1758055920718,-412.75,0.00032328,6]
[385817633,1758055920727,-414.15,0.00032328,6]
[385817634,1758055920736,-400.0,0.00032328,6]
[385817635,1758055920745,-739.18,0.00032328,6]
[385817636,1758055920754,-400.0,0.00032328,6]
[385817637,1758055920764,-400.0,0.00032328,6]
[385817638,1758055920774,-400.0,0.00032328,6]
[385817639,1758055920784,-1559.48,0.00032328,6]
[385817640,1758055920794,-200.66110273,0.00032328,6]
[385817641,1758055920805,-400.0,0.00032328,6]
[385817642,1758055920815,-400.0,0.00032328,6]
[385817643,1758055920825,-400.0,0.00032328,6]
[385817644,1758055920834,-542.77,0.00032328,6]
[385817645,1758055920843,-400.0,0.00032328,6]
[385817646,1758055920852,-400.0,0.00032328,6]
[385817647,1758055920861,-400.0,0.00032328,6]
[385817648,1758055920871,-400.0,0.00032328,6]
[385817649,1758055920880,-582.39,0.00032328,6]
[385817650,1758055920889,-173.907412,0.00032328,6]
[385817651,1758055920898,-479.79,0.00032328,6]
[385817652,1758055920907,-400.0,0.00032328,6]
[385817653,1758055920916,-532.53,0.00032328,6]
[385817654,1758055920926,-400.0,0.00032328,6]
[385817655,1758055920935,-619.12,0.00032328,6]
[385817656,1758055920945,-400.0,0.00032328,6]
[385817657,1758055920954,-3974.25,0.00032328,6]
[385817658,1758055920963,-441.55,0.00032328,6]
[385817659,1758055920972,-400.0,0.00032328,6]
[385817660,1758055920981,-563.92,0.00032328,6]
[385817661,1758055920990,-400.0,0.00032328,6]
[385817662,1758055921000,-400.0,0.00032328,6]
[385817663,1758055921009,-548.54,0.00032328,6]
[385817664,1758055921019,-231.50021386,0.00032328,6]
[385817665,1758055921028,-421.81,0.00032328,6]
[385817666,1758055921037,-400.0,0.00032328,6]
[385817667,1758055921047,-400.0,0.00032328,6]
[385817668,1758055921056,-518.36,0.00032328,6]
[385817669,1758055921065,-400.0,0.00032328,6]
[385817670,1758055921074,-510.5,0.00032328,6]
[385817671,1758055921083,-400.0,0.00032328,6]
[385817672,1758055921092,-701.31,0.00032328,6]
[385817673,1758055921102,-400.0,0.00032328,6]
[385817674,1758055921111,-400.0,0.00032328,6]
[385817675,1758055921120,-400.0,0.00032328,6]
[385817676,1758055921129,-400.0,0.00032328,6]
[385817677,1758055921138,-415.13,0.00032328,6]
[385817678,1758055921147,-400.0,0.00032328,6]
[385817679,1758055921156,-636.08,0.00032328,6]
[385817680,1758055921165,-531.98937807,0.00032328,6]
[385817681,1758055921175,-509.49,0.00032328,6]
[385817682,1758055921185,-394.52,0.00032328,6]
[385817683,1758055921194,-501.58,0.00032328,6]
[385817684,1758055921204,-400.0,0.00032328,6]
[385817685,1758055921213,-394.57594276,0.00032328,6]
[385817686,1758055921222,-400.0,0.00032328,6]
[385817687,1758055921232,-400.0,0.00032328,6]
[385817688,1758055921241,-400.0,0.00032328,6]
[385817689,1758055921250,-400.0,0.00032328,6]
[385817690,1758055921259,-400.0,0.00032328,6]
[385817691,1758055921269,-1169.89,0.00032328,6]
[385817692,1758055921278,-420.32,0.00032328,6]
[385817693,1758055921287,-400.0,0.00032328,6]
[385817694,1758055921297,-400.0,0.00032328,6]
[385817695,1758055921306,-400.0,0.00032328,6]
[385817696,1758055921315,-400.0,0.00032328,6]
[385817697,1758055921324,-400.0,0.00032328,6]
[385817698,1758055921333,-455.99963011,0.00032328,6]
[385817699,1758055921343,-515.27,0.00032328,6]
[385817700,1758055921356,-400.0,0.00032328,6]
[385817701,1758055921366,-625.17,0.00032328,6]
[385817702,1758055921375,-400.0,0.00032328,6]
[385817703,1758055921384,-400.0,0.00032328,6]
[385817704,1758055921393,-439.62,0.00032328,6]
[385817705,1758055921402,-400.0,0.00032328,6]
[385817706,1758055921411,-400.0,0.00032328,6]
[385817707,1758055921421,-511.44,0.00032328,6]
[385817708,1758055921430,-735.9,0.00032328,6]
[385817709,1758055921439,-1007.96,0.00032328,6]
[385817710,1758055921449,-400.0,0.00032328,6]
[385817711,1758055921458,-400.0,0.00032328,6]
[385817712,1758055921468,-457.27,0.00032328,6]
[385817713,1758055921478,-468.84,0.00032328,6]
[385817714,1758055921487,-539.99,0.00032328,6]
[385817715,1758055921496,-592.52,0.00032328,6]
[385817716,1758055921505,-414.16,0.00032328,6]
[385817717,1758055921515,-431.48,0.00032328,6]
[385817718,1758055921525,-400.0,0.00032328,6]
[385817719,1758055921535,-400.0,0.00032328,6]
[385817720,1758055921545,-459.27,0.00032328,6]
[385817721,1758055921555,-403.80866302,0.00032328,6]
[385817722,1758055921565,-204.14026903,0.00032328,6]
[385817723,1758055921575,-952.83,0.00032328,6]
[385817724,1758055921585,-714.98,0.00032328,6]
[385817725,1758055921594,-347.8206054,0.00032328,6]
[385817726,1758055921604,-946.11,0.00032328,6]
[385817727,1758055921615,-502.49,0.00032328,6]
[385817728,1758055921625,-2413.87,0.00032328,6]
[385817729,1758055921634,-525.48,0.00032328,6]
[385817730,1758055921644,-528.5,0.00032328,6]
[385817731,1758055921654,-400.0,0.00032328,6]
[385817732,1758055921663,-485.03,0.00032328,6]
[385817733,1758055921673,-499.88,0.00032328,6]
[385817734,1758055921682,-634.51,0.00032328,6]
[385817735,1758055921692,-300.0,0.00032328,6]
[385817736,1758055921701,-632.16,0.00032328,6]
[385817737,1758055921711,-400.0,0.00032328,6]
[385817738,1758055921720,-400.0,0.00032328,6]
[385817739,1758055921729,-885.28,0.00032328,6]
[385817740,1758055921739,-472.66,0.00032328,6]
[385817741,1758055921749,-400.0,0.00032328,6]
[385817742,1758055921759,-458.62,0.00032328,6]
[385817743,1758055921769,-400.0,0.00032328,6]
[385817744,1758055921778,-400.0,0.00032328,6]
[385817745,1758055921787,-989.12,0.00032328,6]
[385817746,1758055921796,-432.05,0.00032328,6]
[385817747,1758055921806,-400.0,0.00032328,6]
[385817748,1758055921816,-319.2575604,0.00032328,6]
[385817749,1758055921826,-566.3,0.00032328,6]
[385817750,1758055921836,-403.92,0.00032328,6]
[385817751,1758055921846,-1276.01,0.00032328,6]
[385817752,1758055921856,-400.0,0.00032328,6]
[385817753,1758055921866,-400.0,0.00032328,6]
[385817754,1758055921874,-400.0,0.00032328,6]
[385817755,1758055921883,-400.0,0.00032328,6]
[385817756,1758055921893,-400.0,0.00032328,6]
[385817757,1758055921902,-418.98,0.00032328,6]
[385817758,1758055921911,-2326.43,0.00032328,6]
[385817759,1758055921923,-400.0,0.00032328,6]
[385817760,1758055921933,-538.32,0.00032328,6]
[385817761,1758055921943,-400.0,0.00032328,6]
[385817762,1758055921955,-579.99,0.00032328,6]
[385817763,1758055921966,-400.0,0.00032328,6]
[385817764,1758055921977,-400.0,0.00032328,6]
[385817765,1758055921986,-1109.01,0.00032328,6]
[385817766,1758055921995,-400.0,0.00032328,6]
[385817767,1758055922005,-400.0,0.00032328,6]
[385817768,1758055922015,-867.79,0.00032328,6]
[385817769,1758055922024,-1132.05,0.00032328,6]
[385817770,1758055922034,-215.20140574,0.00032328,6]
[385817771,1758055922043,-449.54,0.00032328,6]
[385817772,1758055922054,-1010.91,0.00032328,6]
[385817773,1758055922063,-662.74,0.00032328,6]
[385817774,1758055922073,-533.65,0.00032328,6]
[385817775,1758055922082,-400.0,0.00032328,6]
[385817776,1758055922091,-400.0,0.00032328,6]
[385817777,1758055922101,-400.0,0.00032328,6]
[385817778,1758055922110,-648.06,0.00032328,6]
[385817779,1758055922119,-1125.68,0.00032328,6]
[385817780,1758055922128,-539.15,0.00032328,6]
[385817781,1758055922137,-400.0,0.00032328,6]
[385817782,1758055922147,-493.22,0.00032328,6]
[385817783,1758055922156,-589.24,0.00032328,6]
[385817784,1758055922165,-533.501861,0.00032328,6]
[385817785,1758055922174,-624.32,0.00032328,6]
[385817786,1758055922184,-798.32,0.00032328,6]
[385817787,1758055922194,-1260.04,0.00032328,6]
[385817788,1758055922203,-623.88,0.00032328,6]
[385817789,1758055922212,-168.35421532,0.00032328,6]
[385817790,1758055922222,-540.9,0.00032328,6]
[385817791,1758055922231,-400.0,0.00032328,6]
[385817792,1758055922240,-576.24,0.00032328,6]
[385817793,1758055922250,-483.13,0.00032328,6]
[385817794,1758055922259,-1873.62,0.00032328,6]
[385817795,1758055922268,-619.08,0.00032328,6]
[385817796,1758055922278,-483.51,0.00032328,6]
[385817797,1758055922287,-160.16970848,0.00032328,6]
[385817798,1758055922297,-832.27,0.00032328,6]
[385817799,1758055922308,-3866.02,0.00032328,6]
[385817800,1758055922317,-684.05,0.00032328,6]
[385817801,1758055922328,-400.0,0.00032328,6]
[385817802,1758055922337,-400.0,0.00032328,6]
[385817803,1758055922348,-400.0,0.00032328,6]
[385817804,1758055922358,-400.0,0.00032328,6]
[385817805,1758055922368,-400.0,0.00032328,6]
[385817806,1758055922378,-1080.44,0.00032328,6]
[385817807,1758055922388,-400.0,0.00032328,6]
[385817808,1758055922403,-400.0,0.00032328,6]
[385817809,1758055922413,-400.0,0.00032328,6]
[385817810,1758055922425,-400.0,0.00032328,6]
[385817811,1758055922435,-539.06,0.00032328,6]
[385817812,1758055922446,-603.43,0.00032328,6]
[385817813,1758055922455,-674.22,0.00032328,6]
[385817814,1758055922465,-881.46,0.00032328,6]
[385817815,1758055922474,-416.64,0.00032328,6]
[385817816,1758055922484,-456.38,0.00032328,6]
[385817817,1758055922494,-500.02,0.00032328,6]
[385817818,1758055922503,-594.86,0.00032328,6]
[385817819,1758055922513,-4462.76,0.00032328,6]
[385817820,1758055922522,-416.47,0.00032328,6]
[385817821,1758055922532,-691.5,0.00032328,6]
[385817822,1758055922542,-400.0,0.00032328,6]
[385817823,1758055922552,-863.73,0.00032328,6]
[385817824,1758055922562,-400.0,0.00032328,6]
[385817825,1758055922572,-820.55,0.00032328,6]
[385817826,1758055922582,-934.84,0.00032328,6]
[385817827,1758055922592,-400.0,0.00032328,6]
[385817828,1758055922601,-400.0,0.00032328,6]
[385817829,1758055922613,-1000.0,0.00032328,6]
[385817830,1758055922622,-400.0,0.00032328,6]
[385817831,1758055922631,-423.92,0.00032328,6]
[385817832,1758055922641,-400.0,0.00032328,6]